Cogmind - Beta 15 @@@ ROGUE MODE // 2025.05.11 @ 20:32:15 Player: shockman27 Result: Destroyed by G-67 Veteran with Plasma Rifle Performance ------------- Evolutions (6) 3000 Regions Visited (10) 2000 Robots Destroyed (176) 880 Value Destroyed (5352) 5352 Prototype IDs (31) 620 Alien Tech Used (0) 0 Bonus (857) 857 TOTAL SCORE: 12709 Bonus ------- High Alert Combat Kills 24 Follower Combat Kills 410 Entered DSFs 500 Friendly Fire -77 Cogmind --------- Core Integrity 0/1150 Matter 283/300 Energy 32/100 System Corruption 30% Temperature Cool (12) Movement Core (100) Ox1 Location -4/Factory Parts ------- > --- POWER (2) -------- (None) > --- PROPULSION (6) --- (None) > --- UTILITY (9) ------ (None) > --- WEAPON (2) ------- Thunder Hammer > --- INVENTORY (5) ---- Armored Medium Treads Matter Filter Improved Grenade Launcher Peak State ------------ > --- POWER ------------ Neutrino Core Antimatter Reactor > --- PROPULSION ------- Armored Medium Treads Armored Medium Treads Armored Medium Treads Armored Medium Treads Armored Medium Treads Armored Medium Treads > --- UTILITY ---------- Advanced Cooling System Medium Storage Unit Advanced Sensor Array Advanced Signal Interpreter Advanced Particle Charger Kinecellerator Light Regenerative Plating Hacking Suite System Shield > --- WEAPON ----------- Matter Neutralizer Phasing Sabre > --- INVENTORY -------- Light Angular Momentum Engine Armored Medium Treads Armored Medium Treads Matter Filter Lightning Gun Plasma Cannon Heavy Assault Rifle Precision Assault Rifle Gauss Cannon Improved Grenade Launcher [Rating: 106] Favorites ----------- Power Ion Engine Engine Ion Engine Power Core Micro Nuclear Core Reactor Antimatter Reactor Propulsion Light Treads Treads Light Treads Leg Carbon-fiber Leg Wheel Wheel Hover Unit Aerolev Unit Utility Improved Signal Interpreter Device Improved Sensor Array Storage Medium Storage Unit Processor Improved Signal Interpreter Hackware System Shield Protection Light Armor Plating Weapon Gauss Rifle Energy Gun Heavy Particle Gun Energy Cannon Beam Cannon Ballistic Gun Gauss Rifle Ballistic Cannon Battle Cannon Launcher Grenade Launcher Special Weapon Mining Laser Impact Weapon Heavy Flail Slashing Weapon Phasing Sabre Build | -11 -10 -10 -10 -8 -7 -7 -7 -5 -5 -4 ------- Run | Yrd Mat Min Sub Mat Fac Sto Rec Fac DSF Fac Slots Evolved 12 | . . . . 4 2 . . 4 . 2 Power 1 | . . . . . . . . 1 . . Propulsion 4 | . . . . 2 . . . 2 . . Utility 7 | . . . . 2 2 . . 1 . 2 Weapon . | . . . . . . . . . . . Parts Attached 141 | 7 17 7 3 41 10 14 7 . 16 19 Power 22 | 1 2 2 . 4 3 3 . . 4 3 Engine 9 | 1 2 2 . 2 1 1 . . . . Core 9 | . . . . 2 2 1 . . 3 1 Reactor 4 | . . . . . . 1 . . 1 2 Propulsion 39 | 2 4 2 . 15 . 4 2 . 6 4 Treads 18 | . 2 2 . 6 . . . . 6 2 Leg 7 | . . . . 5 . . . . . 2 Wheel 4 | 2 2 . . . . . . . . . Hover 10 | . . . . 4 . 4 2 . . . Flight . | . . . . . . . . . . . Utility 37 | 2 2 1 1 11 4 6 2 . 3 5 Device 15 | 1 1 1 . 3 1 3 . . 3 2 Storage 5 | 1 1 . . 3 . . . . . . Processor 3 | . . . . 2 . . . . . 1 Hackware 3 | . . . . . 2 . 1 . . . Protection 11 | . . . 1 3 1 3 1 . . 2 Artifact . | . . . . . . . . . . . Weapon 43 | 2 9 2 2 11 3 1 3 . 3 7 Energy Gun 14 | 1 2 . 1 5 1 . . . . 4 Energy Cannon 5 | . 1 . . . . . 1 . 2 1 Ballistic Gun 10 | 1 2 2 . 2 1 . 2 . . . Ballistic Cannon 4 | . . . 1 1 . 1 . . 1 . Launcher 3 | . 1 . . 1 1 . . . . . Special Weapon 2 | . 2 . . . . . . . . . Impact Weapon 4 | . 1 . . 2 . . . . . 1 Slashing Weapon 1 | . . . . . . . . . . 1 Piercing Weapon . | . . . . . . . . . . . Special Melee Weapon . | . . . . . . . . . . . Unidentified Prototypes 8 | . . . . . 3 4 . . . 1 Corrupted Parts 3 | . . . . . . . . . . 3 System Corruption 9 | . . . . . . . . . . 9 Parts Lost 56 | . 2 1 . 12 2 3 3 . 1 32 Power 9 | . . . . 1 1 1 . . 1 5 Propulsion 19 | . 2 . . 7 . . 2 . . 8 Utility 17 | . . 1 . 1 1 2 1 . . 11 Weapon 11 | . . . . 3 . . . . . 8 Highest Loss Streak 17 | . 2 1 . 6 2 1 2 . 1 17 To Critical Strikes 1 | . . . . . . . . . . 1 Average Backups 12 | 4 11 13 14 17 9 9 9 10 9 8 Power 1 | . 2 2 2 2 1 . 1 1 . . Propulsion 2 | 2 2 2 3 4 2 2 . . . 1 Utility 2 | . 1 2 4 5 1 1 . 1 . 1 Weapon 5 | . 4 6 5 5 5 5 7 8 8 4 Tool/Special . | . . . . . . . . . . . Unused Backups 38 | . 5 4 3 15 4 3 1 . 1 2 Power 9 | . 1 1 . 2 2 2 . . . 1 Propulsion 5 | . 2 . . 3 . . . . . . Utility 11 | . 1 1 1 4 1 1 . . 1 1 Weapon 12 | . 1 2 1 6 1 . 1 . . . Tool/Special 1 | . . . 1 . . . . . . . Average Slot Usage (%) 95 | . 99 95 100 97 99 98 99 76 92 80 Engine 5 | . 14 14 14 4 . . . . . . Core 3 | . . . . 4 7 6 7 5 5 4 Treads 16 | . 20 28 28 14 . . . . 33 27 Leg 5 | . . . . 17 . . . . . . Wheel 1 | . 7 . . . . . . . . . Hover 7 | . . . . 2 30 29 29 23 1 . Device 10 | . 14 12 1 8 8 10 7 5 9 13 Storage 9 | . 14 14 14 9 7 7 7 5 5 4 Processor 4 | . . . . 8 7 7 7 5 5 3 Hackware 3 | . . . . . 14 8 12 11 11 6 Protection 6 | . . . 12 9 5 9 9 5 5 4 Energy Gun 4 | . 6 . 1 8 2 1 . . . 1 Energy Cannon 3 | . 4 12 9 . . . 5 5 1 3 Ballistic Gun 5 | . 12 5 4 4 5 6 7 5 . . Ballistic Cannon 2 | . . . 11 2 . 4 . . 3 1 Impact Weapon 2 | . 2 1 1 2 5 1 . . . 2 Peak Build Rating 106 | 7 8 10 15 41 47 57 57 52 90 106 Average Rating 34 | 5 7 8 11 29 44 53 52 52 83 84 On Entrance 33 | . 7 8 10 15 36 47 56 52 52 90 Naked Turns . | . . . . . . . . . . . Heaviest Build 76 | 13 30 34 38 59 34 38 37 32 67 76 Greatest Support 162 | 20 40 40 40 80 32 36 36 34 162 162 Greatest Overweight (x) 5 | 3 . . . 2 1 1 1 . 1 5 Average Overweight (x) . | . . . . . . . . . . . Largest Inventory Capacity 20 | 8 15 15 15 20 10 10 10 10 10 10 Average Capacity 13 | 7 12 15 15 18 10 10 10 10 10 9 Most Carried 20 | 7 15 15 15 20 10 10 10 10 10 10 Average Carried 13 | 4 11 14 14 17 9 9 9 10 9 8 Final Capacity 15 | 8 15 15 15 10 10 10 10 10 10 5 Final Carried 15 | 7 15 15 15 10 10 10 10 10 10 3 Class Distribution -------------------- 57% | Mutant 24% | Scavenger-Mutant 15% | Hacker-Mutant Dominant Class ---------------- Mutant | -10/Materials Mutant | -10/Mines Mutant | -10/Subcaves Mutant | -8/Materials Hacker-Mutant | -7/Factory Mutant | -7/Storage Hacker-Mutant | -7/Recycling Hacker-Mutant | -5/Factory Hacker-Mutant | -5/DSF Scavenger-Mutant | -4/Factory Resources | -11 -10 -10 -10 -8 -7 -7 -7 -5 -5 -4 ----------- Run | Yrd Mat Min Sub Mat Fac Sto Rec Fac DSF Fac Matter Collected 4801 | 278 306 255 169 1420 349 864 245 . 272 643 Remotely . | . . . . . . . . . . . Salvage Created 6650 | 64 1043 210 137 1883 162 958 317 . 78 1798 Parts 325 | 7 58 19 10 101 15 55 10 . 9 41 Haulers Intercepted 13 | . 2 . . 6 . 3 1 . . 1 Recyclers Shooed 5 | 1 1 . . 2 . . . . . 1 Parts Field Recycled . | . . . . . . . . . . . Retrieved Matter . | . . . . . . . . . . . Parts Self-Destructed . | . . . . . . . . . . . Prevented . | . . . . . . . . . . . Kills | -11 -10 -10 -10 -8 -7 -7 -7 -5 -5 -4 ------- Run | Yrd Mat Min Sub Mat Fac Sto Rec Fac DSF Fac Combat Hostiles Destroyed 117 | . 22 11 4 32 3 12 4 . 6 23 Melee 3 | . . 1 . . . . . . . 2 Guns 39 | . 11 . . 17 3 5 2 . . 1 Cannons 46 | . 8 3 4 13 . 7 2 . 3 6 AOE 14 | . 3 6 . 2 . . . . 3 . Classes Destroyed 16 | 1 8 . 1 2 1 1 1 . . 1 Worker 6 | . 1 . . 1 . 3 . . . 1 Builder 11 | . . . . 6 1 4 . . . . Tunneler 7 | 3 2 . . 1 1 . . . . . Hauler 13 | . 2 . . 6 . 3 1 . . 1 Recycler 6 | . 1 1 . 2 . . . . . 2 Mechanic 2 | . 1 . . . . . . . . 1 Operator 4 | . 1 . . 1 . 2 . . . . Watcher 9 | . 2 . . 5 . 1 . . . 1 Swarmer 35 | . 6 9 . 8 1 1 . . 6 4 Grunt 49 | . 16 2 . 16 1 5 . . . 9 Brawler 3 | . . . . . . . 1 . . 2 Duelist 2 | . . . . . . . . . . 2 Sentry 17 | . . . . 8 . 4 3 . . 2 Hunter 3 | . . . . . . 1 . . . 2 Programmer 5 | . . . . . 1 2 . . . 2 Subdweller 4 | . . . 4 . . . . . . . Best Kill Streak 10 | 1 5 6 2 10 4 4 2 . 6 7 Combat Bots Only 6 | . 4 6 2 6 2 2 1 . 6 5 Max Kills in Single Turn 3 | 1 2 2 1 2 1 2 1 . 3 2 Gunslinging . | . . . . . . . . . . . Exploded 3 | . 2 2 . 1 . . . . 3 . Melee 1 | . . 1 . . . . . . . 1 Uniques/NPCs Destroyed . | . . . . . . . . . . . Combat | -11 -10 -10 -10 -8 -7 -7 -7 -5 -5 -4 -------- Run | Yrd Mat Min Sub Mat Fac Sto Rec Fac DSF Fac Hostile Shots Fired 1150 | . 73 61 9 244 62 187 126 . 14 374 Missed 317 | . 15 14 3 56 23 67 49 . 4 86 Hits 833 | . 58 47 6 188 39 120 77 . 10 288 Melee 28 | . . . . . . . . . . 28 Projectile 805 | . 58 47 6 188 39 120 77 . 10 260 Critical Strikes 31 | . . . . 12 2 . . . . 17 Part Disruptions 1 | . . . . . . . . . . 1 Damage Taken 12814 | . 700 424 189 2681 689 1251 610 . 157 6113 Core 2169 | . 94 100 49 298 279 132 54 . . 1163 Absorbed by Shields . | . . . . . . . . . . . Regen/Repaired (Parts) 655 | . 216 . . 42 . 280 110 . . 7 Core Remaining (%) 56 | 100 . . 2 45 . . 33 . 100 . Volleys Fired 536 | 22 99 25 19 169 27 71 27 . 14 63 Largest 2 | 2 2 2 2 2 2 2 2 . 1 2 Hottest 185 | 60 100 80 108 128 56 95 103 . 105 185 Shots Fired 964 | 42 188 32 40 311 45 138 47 . 14 107 Gun 651 | 42 135 11 9 233 44 92 27 . . 58 Cannon 294 | . 44 16 31 75 . 46 20 . 13 49 Launcher 13 | . 3 5 . 3 1 . . . 1 . Special 6 | . 6 . . . . . . . . . Kinetic 500 | 22 64 11 22 162 44 113 27 . 9 26 Thermal 372 | 20 88 16 18 149 . . 20 . 4 57 Explosive 10 | . 3 5 . . 1 . . . 1 . Electromagnetic 82 | . 33 . . . . 25 . . . 24 Robot Hit Streak 33 | 6 8 2 7 33 9 26 10 . 9 17 Robot Miss Streak 6 | 4 4 4 4 6 4 2 3 . 2 3 Penetration Max 1 | . . . . . 1 1 . . . . Secondary Targets 1 | . . . . . 1 . . . . . Max Gunslinging Chain 1 | . . . . . 1 . . . . . Shots Hit Robots 634 | 27 107 12 20 202 29 102 36 . 5 94 Core Hits 246 | 7 51 11 7 85 8 35 9 . 6 27 Critical Kills 5 | . . . . 1 . . . . . 4 Critical Parts Destroyed 12 | . 1 . . 1 . . 1 . . 9 Critical Strikes 38 | . 2 . . 14 . 5 1 . 1 15 Burn 7 | . . . . 7 . . . . . . Meltdown 4 | . . . . . . . . . . 4 Destroy 2 | . 1 . . . . . 1 . . . Blast 12 | . . . . 5 . 5 . . 1 1 Corrupt 1 | . 1 . . . . . . . . . Smash 11 | . . . . 2 . . . . . 9 Sever 1 | . . . . . . . . . . 1 Melee Attacks 131 | . 3 8 1 30 31 6 5 . . 47 Impact 126 | . 3 8 1 30 31 6 5 . . 42 Slashing 5 | . . . . . . . . . . 5 Piercing . | . . . . . . . . . . . Sneak Attacks 6 | . . . . 2 . 1 . . . 3 Combat Hostiles . | . . . . . . . . . . . Follow-up Attacks . | . . . . . . . . . . . Damage Inflicted 15100 | 254 1732 514 370 4072 790 2525 724 . 572 3547 Guns 7072 | 254 896 14 42 2725 703 1370 324 . . 744 Cannons 4987 | . 540 126 328 873 . 1031 400 . 348 1341 Explosions 1291 | . 296 293 . 318 87 21 . . 224 52 Melee 1747 | . . 81 . 156 . 100 . . . 1410 Ramming 3 | . . . . . . 3 . . . . Kinetic 6454 | 122 327 14 188 2039 703 2067 324 . 273 397 Thermal 5111 | 132 889 126 182 1877 87 21 400 . 75 1322 Explosive 766 | . 249 293 . . . . . . 224 . Electromagnetic 1019 | . 267 . . . . 334 . . . 418 Impact 1631 | . . 81 . 156 . 100 . . . 1294 Slashing 116 | . . . . . . . . . . 116 Piercing . | . . . . . . . . . . . Highest Corruption 29 | . 2 2 2 . 1 4 5 . . 29 Average Corruption 4 | . 2 2 2 . 1 2 4 . . 19 Corruption Purged 1 | . . . . . 1 . . . . . Corruption Blocked . | . . . . . . . . . . . Effects 94 | . 5 20 10 . 1 11 21 . . 26 Message Errors 19 | . . 5 3 . . 3 6 . . 2 Matter Fused 33 | . 3 5 4 . . 1 9 . . 11 Heat Flow Errors 10 | . . 4 . . 1 2 1 . . 2 Energy Discharges 7 | . 1 2 . . . . 2 . . 2 Parts Rejected 2 | . . 1 . . . . . . . 1 Data Loss (minor) 5 | . 1 1 . . . 2 . . . 1 Data Loss (major) 4 | . . . 1 . . . 2 . . 1 Misfires 4 | . . . 2 . . 2 . . . . Alerts 3 | . . 2 . . . . 1 . . . Misdirections 2 | . . . . . . . . . . 2 Weapon Failures 5 | . . . . . . 1 . . . 4 Overload Shots . | . . . . . . . . . . . Overflow Damage 997 | . 12 57 . 44 47 93 . . 21 723 Projectiles 92 | . 3 16 . . . 33 . . 20 20 Explosions 73 | . 9 16 . . 47 . . . 1 . Melee 832 | . . 25 . 44 . 60 . . . 703 Knockbacks 34 | . . 1 . 10 . 7 . . 3 13 Impact 11 | . . 1 . . . . . . . 10 Kinetic 19 | . . . . 9 . 6 . . 2 2 Secondary 4 | . . . . 1 . 1 . . 1 1 Self-Inflicted Damage 187 | . 18 . . . 93 1 . . . 75 Shots 4 | . 1 . . . 1 . . . . 2 Rammed 1 | . . . . . . 1 . . . . Targets Rammed 1 | . . . . . . 1 . . . . Kicked . | . . . . . . . . . . . Crushed . | . . . . . . . . . . . Highest Temperature 803 | 40 344 282 4 386 216 401 184 . . 803 Average Temperature 102 | 22 73 90 2 101 71 88 37 . . 220 Received Heat Transfer 3195 | . 336 39 21 1332 63 348 174 . . 882 Effects 35 | . 2 . . 5 . 4 . . . 24 Shutdowns 7 | . . . . 1 . . . . . 6 Energy Bleed 3 | . 1 . . 1 . . . . . 1 Interference 10 | . . . . 3 . 3 . . . 4 Matter Decay 3 | . . . . . . . . . . 3 Short Circuit 3 | . . . . . . . . . . 3 Damage (minor) 5 | . 1 . . . . 1 . . . 3 Damage (major) 4 | . . . . . . . . . . 4 Siege Activations . | . . . . . . . . . . . Martial Activations . | . . . . . . . . . . . Shielding Activations . | . . . . . . . . . . . Robots Disrupted . | . . . . . . . . . . . Combat Hostiles . | . . . . . . . . . . . Robots Corrupted 16 | . . 1 . 1 . 1 . . . 13 Combat Hostiles 12 | . . 1 . . . . . . . 11 Parts Fried 34 | . 1 1 . 5 . 10 . . . 17 Impact Corruptions 31 | . . 2 . 2 . 3 . . . 24 Robots Melted 4 | . . . . . . . . . . 4 Combat Hostiles 3 | . . . . . . . . . . 3 Parts Melted 18 | . 2 1 1 9 . 1 1 . . 3 Heat Transferred 9330 | 300 1846 259 370 4329 50 50 592 . 74 1460 Parts Sabotaged 8 | . . . . . . . . . . 8 Parts Stolen . | . . . . . . . . . . . Parts Stripped . | . . . . . . . . . . . Power Chain Reactions 3 | . 1 . . . . 1 . . . 1 Alert | -11 -10 -10 -10 -8 -7 -7 -7 -5 -5 -4 ------- Run | Yrd Mat Min Sub Mat Fac Sto Rec Fac DSF Fac Maximum Alert Level 2 | . 1 1 . 1 . 1 . 2 2 2 Low Security (%) 62 | 100 60 88 . 38 100 72 100 . . 75 Level 1 36 | . 39 11 . 61 . 27 . 11 83 23 Level 2 . | . . . . . . . . 88 16 . Level 3 . | . . . . . . . . . . . Level 4 . | . . . . . . . . . . . Level 5 . | . . . . . . . . . . . High Security . | . . . . . . . . . . . Max Security . | . . . . . . . . . . . Sterilizations 1 | . . . . . . . . . 1 . Peak Influence 506 | 5 339 257 . 317 101 323 115 414 506 402 Initial 414 | . . 93 . . 100 . 115 414 275 265 Average 150 | . 158 100 . 181 55 136 54 406 328 185 Influence Increases 5280 | 15 762 304 . 1135 236 786 350 400 301 991 Destroy 0b10 Robot/C 2500 | . 440 220 . 640 60 380 100 . 200 460 Destroy 0b10 Robot/NC 290 | 15 50 5 . 110 10 65 5 . . 30 Destroy Leader 502 | . 78 40 . 172 10 98 . . 20 84 Allied During Kill 140 | . . . . . . 100 15 . 25 . Successful Hack 148 | . 15 . . 53 . 27 25 . . 28 Select Force Hacks 210 | . 60 . . . . . 150 . . . Disable Machine 255 | . 45 . . 45 60 45 . . . 60 Destroy Structure 295 | . 14 24 . 85 66 26 10 . 26 44 Advance Influence 400 | . . . . . . . . 400 . . Partial Spotted 75 | . . . . . 15 15 45 . . . Lose Combat Pursuer 465 | . 60 15 . 30 15 30 . . 30 285 Influence Decreases 4878 | 15 522 544 . 914 457 489 611 42 189 1095 Entered New Map 832 | . . 147 . . 121 . 182 22 119 241 Time Decay 3091 | 15 502 387 . 644 316 339 374 20 . 494 Lost Part 550 | . 20 10 . 120 20 30 20 . 10 320 Lost Ally 255 | . . . . . . 120 35 . 60 40 Purge Threat 150 | . . . . 150 . . . . . . Squads Dispatched 24 | . 3 . . 4 4 5 . . 2 6 Investigation 3 | . 2 . . . 1 . . . . . Extermination 4 | . . . . . 1 2 . . . 1 Reinforcement 12 | . 1 . . 2 2 3 . . 2 2 Assault 2 | . . . . . . . . . . 2 Garrison 3 | . . . . 2 . . . . . 1 Intercept . | . . . . . . . . . . . Searches Triggered . | . . . . . . . . . . . Construction Impeded 3 | . . . . 1 1 . . . . 1 Haulers Reinforced 3 | . . . . . 1 1 . . . 1 Active Scanning Responses . | . . . . . . . . . . . Cargo Convoy Interrupts . | . . . . . . . . . . . Stealth | -11 -10 -10 -10 -8 -7 -7 -7 -5 -5 -4 --------- Run | Yrd Mat Min Sub Mat Fac Sto Rec Fac DSF Fac Distress Signals 15 | . 4 . . 5 . 2 1 . . 3 Communications Jammed . | . . . . . . . . . . . Distress Signals . | . . . . . . . . . . . Times Spotted 226 | . 41 12 7 53 9 42 5 . 16 41 Peak Tracking Total 8 | . 6 3 2 7 3 5 1 . 5 8 Tactical Retreats 19 | . 2 1 . 2 1 3 . . 1 9 Traps | -11 -10 -10 -10 -8 -7 -7 -7 -5 -5 -4 ------- Run | Yrd Mat Min Sub Mat Fac Sto Rec Fac DSF Fac Traps Triggered 6 | . 1 . 2 . 3 . . . . . Indirectly . | . . . . . . . . . . . Trap Hack Attempts . | . . . . . . . . . . . Triggered . | . . . . . . . . . . . Disarmed . | . . . . . . . . . . . Reprogrammed . | . . . . . . . . . . . Reused . | . . . . . . . . . . . Traps Extracted . | . . . . . . . . . . . Installed . | . . . . . . . . . . . Triggered . | . . . . . . . . . . . Machines | -11 -10 -10 -10 -8 -7 -7 -7 -5 -5 -4 ---------- Run | Yrd Mat Min Sub Mat Fac Sto Rec Fac DSF Fac Machines Disabled 18 | . 3 . 1 3 4 3 . . . 4 Max in Single Turn 2 | . 1 . 1 1 2 1 . . . 2 Garrison Access 2 | . . . . 1 . . . . . 1 Machines Repaired . | . . . . . . . . . . . Machines Dismantled . | . . . . . . . . . . . Machines Sabotaged . | . . . . . . . . . . . Overloaded Fab Kills . | . . . . . . . . . . . Hacking | -11 -10 -10 -10 -8 -7 -7 -7 -5 -5 -4 --------- Run | Yrd Mat Min Sub Mat Fac Sto Rec Fac DSF Fac Machines Accessed 52 | . 11 . 1 14 2 7 11 1 . 5 Terminals 37 | . 8 . . 10 2 5 6 1 . 5 Fabricators . | . . . . . . . . . . . Repair Stations 4 | . 1 . . 1 . 2 . . . . Recycling Units 8 | . 2 . . 1 . . 5 . . . Scanalyzers 1 | . . . . 1 . . . . . . Garrison Access 1 | . . . . 1 . . . . . . Total Hacks 152 | . 37 . 9 40 5 18 28 2 . 13 Successful 91 | . 18 . 9 26 1 12 17 1 . 7 Failed 61 | . 19 . . 14 4 6 11 1 . 6 Catastrophic 9 | . 1 . . 1 . 2 5 . . . Database Lockouts . | . . . . . . . . . . . Manual 79 | . 28 . 1 21 2 6 13 . . 8 Terminals 111 | . 31 . . 29 5 11 20 2 . 13 Fabricators . | . . . . . . . . . . . Repair Stations 14 | . 4 . . 3 . 7 . . . . Recycling Units 11 | . 2 . . 1 . . 8 . . . Scanalyzers 6 | . . . . 6 . . . . . . Garrison Access 1 | . . . . 1 . . . . . . Terminal Hacks 47 | . 8 . 9 11 1 5 8 1 . 4 Record 9 | . . . 8 . . . . . . 1 Robot Analysis 7 | . 4 . . 3 . . . . . . Prototype ID Bank 5 | . 2 . . 1 . . 1 . . 1 Open Door 2 | . . . . . . 2 . . . . Open DSF 3 | . . . . . 1 . . 1 . 1 Branch Access Points 2 | . . . . . . . 1 . . 1 Machine Index 1 | . . . . . . . 1 . . . Recycling Unit Index 1 | . . . . . . . 1 . . . Alert Level 3 | . . . . 1 . 1 1 . . . Unreport Threat 1 | . . . . 1 . . . . . . Locate Traps 4 | . 2 . . 1 . 1 . . . . Maintenance Status 1 | . . . . . . . 1 . . . Patrol Status 1 | . . . . . . . 1 . . . Transport Status 1 | . . . . 1 . . . . . . Hauler Manifests 2 | . . . . 1 . . 1 . . . Registered Components 1 | . . . . 1 . . . . . . Zone Layout 2 | . . . . 1 . 1 . . . . Proto ID Catalog 1 | . . . 1 . . . . . . . Fabricator Hacks . | . . . . . . . . . . . Repair Station Hacks 11 | . 4 . . 2 . 5 . . . . Scan Component 6 | . 2 . . 1 . 3 . . . . Repair 5 | . 2 . . 1 . 2 . . . . Recycling Unit Hacks 3 | . . . . 1 . . 2 . . . Report Inventory 3 | . . . . 1 . . 2 . . . Scanalyzer 5 | . . . . 5 . . . . . . Insert Component 4 | . . . . 4 . . . . . . Analyze 1 | . . . . 1 . . . . . . Garrison Access Hacks 1 | . . . . 1 . . . . . . Seal Access 1 | . . . . 1 . . . . . . Unauthorized Hacks 24 | . 6 . . 6 . 2 7 . . 3 Terminals 17 | . 4 . . 6 . 2 2 . . 3 Assimilate 1 | . . . . 1 . . . . . . Botnet 13 | . 3 . . 4 . 2 2 . . 2 Operators 3 | . 1 . . 1 . . . . . 1 Fabricators . | . . . . . . . . . . . Repair Stations . | . . . . . . . . . . . Recycling Units 7 | . 2 . . . . . 5 . . . Tunnel 7 | . 2 . . . . . 5 . . . Scanalyzers . | . . . . . . . . . . . Garrison Access . | . . . . . . . . . . . Data Cores Recovered . | . . . . . . . . . . . Used . | . . . . . . . . . . . Hacking Detections 36 | . 9 . . 10 2 3 7 1 . 4 Full Trace Events 3 | . . . . . . . 3 . . . Feedback Events 1 | . . . . . . . 1 . . . Corruption 1 | . . . . . . . 1 . . . Feedback Blocked . | . . . . . . . . . . . Robot Schematics Acquired . | . . . . . . . . . . . Robots Built . | . . . . . . . . . . . Authchips . | . . . . . . . . . . . Time . | . . . . . . . . . . . Total Robot Build Rating . | . . . . . . . . . . . Part Schematics Acquired 1 | . . . . 1 . . . . . . Parts Built . | . . . . . . . . . . . Authchips . | . . . . . . . . . . . Time . | . . . . . . . . . . . Total Part Build Rating . | . . . . . . . . . . . Parts Repaired 5 | . 2 . . 1 . 2 . . . . Time 225 | . 52 . . 50 . 123 . . . . Parts Recycled . | . . . . . . . . . . . Recycled Matter . | . . . . . . . . . . . Retrieved Matter . | . . . . . . . . . . . Retrieved Components . | . . . . . . . . . . . Parts Scanalyzed 1 | . . . . 1 . . . . . . Part Schematics Acquired 1 | . . . . 1 . . . . . . Parts Damaged . | . . . . . . . . . . . Bothacking | -11 -10 -10 -10 -8 -7 -7 -7 -5 -5 -4 ------------ Run | Yrd Mat Min Sub Mat Fac Sto Rec Fac DSF Fac Used RIF Installer . | . . . . . . . . . . . Robots Hacked . | . . . . . . . . . . . Non-combat . | . . . . . . . . . . . Combat . | . . . . . . . . . . . Robot Hacks Applied . | . . . . . . . . . . . Relay Couplers Released 1 | . . . . . . . . . . 1 Machine Destruction 1 | . . . . . . . . . . 1 Fabnet Peak Effective % . | . . . . . . . . . . . Robots Rewired 7 | . . . . . . . 6 . . 1 Allies Hacked 1 | . . . . . . 1 . . . . Hacks Repelled . | . . . . . . . . . . . Allies | -11 -10 -10 -10 -8 -7 -7 -7 -5 -5 -4 -------- Run | Yrd Mat Min Sub Mat Fac Sto Rec Fac DSF Fac Total Allies 19 | . . 2 . . . 10 6 . . 1 Largest Group 10 | . . 2 2 . . 10 6 4 4 2 Highest-Rated Group 173 | . . 55 59 . . 173 116 72 72 80 Highest-Rated Ally 48 | . . 31 31 . . 29 32 32 32 48 Initial Warlord ECA Mod 9 | . . . . . . . . . . 9 Total Orders . | . . . . . . . . . . . Ally Attacks 106 | . . 1 8 . . 49 14 . 29 5 Total Damage 1607 | . . 22 124 . . 643 181 . 447 190 Kills 13 | . . . 1 . . 7 1 . 4 . Allies Corrupted . | . . . . . . . . . . . Allies Melted 1 | . . . . . . . . . 1 . Intel | -11 -10 -10 -10 -8 -7 -7 -7 -5 -5 -4 ------- Run | Yrd Mat Min Sub Mat Fac Sto Rec Fac DSF Fac Active Infowar (turns) 8152 | 89 2009 994 61 2843 726 617 . . . 813 Sensors 5795 | . . 735 61 2843 726 617 . . . 813 Seismic 2357 | 89 2009 259 . . . . . . . . Robot Analysis Total 7 | . 4 . . 3 . . . . . . Derelict Logs Recovered 2 | . . 2 . . . . . . . . Drone Launches 2 | . . . . . . 2 . . . . Drone Recoveries . | . . . . . . . . . . . Exploration | -11 -10 -10 -10 -8 -7 -7 -7 -5 -5 -4 ------------- Run | Yrd Mat Min Sub Mat Fac Sto Rec Fac DSF Fac Turns Passed 12317 | 193 2009 1101 742 3923 726 856 1005 45 399 1318 Spaces Moved 9409 | 123 1144 595 411 2384 991 901 2020 94 202 544 Core 14 | 11 . . . . . . . . . 3 Treads 3108 | . 698 595 411 686 . . . . 188 530 Legs 1224 | . . . . 1213 . . . . . 11 Wheels 558 | 112 446 . . . . . . . . . Hover 4505 | . . . . 485 991 901 2020 94 14 . Flight . | . . . . . . . . . . . Fastest Speed 38 | 50 80 160 160 38 38 38 38 38 38 100 Average Speed 95 | 87 128 160 160 122 45 42 38 38 161 169 Slowest Speed 320 | 200 160 160 160 320 98 102 98 38 250 300 Overloaded Moves . | . . . . . . . . . . . Propulsion Burnouts . | . . . . . . . . . . . Robots Hopped . | . . . . . . . . . . . Potential Cave-ins . | . . . . . . . . . . . Cave-ins Triggered . | . . . . . . . . . . . Exploration Rate (%) 54 | 6 99 92 22 91 15 74 96 1 95 7 Regions Visited 10 Branch Regions 4 Pre-discovered Areas 7 | . 2 . . . . . 5 . . . Known Exits Taken 5 | . . . . 1 1 1 1 1 . . Unknown Exits Taken 4 | 1 1 1 1 . . . . . . . Scrap Searched 9 | . . 1 8 . . . . . . . Spaces Dug 87 | . 6 . . 22 37 4 5 . 3 10 Terrain Destroyed 249 | . 12 25 . 77 68 24 10 . 13 20 Melee 73 | . 2 . . 22 30 4 5 . . 10 Projectile 52 | . 5 . . 13 1 15 4 . 8 6 AOE 123 | . 5 25 . 42 37 5 . . 5 4 Terrain Rammed . | . . . . . . . . . . . Walls Destroyed . | . . . . . . . . . . . Machines Disabled . | . . . . . . . . . . . Actions | -11 -10 -10 -10 -8 -7 -7 -7 -5 -5 -4 --------- Run | Yrd Mat Min Sub Mat Fac Sto Rec Fac DSF Fac Total 11516 | 167 1490 702 453 3015 1172 1221 2200 102 254 740 Wait 919 | 9 184 46 8 280 95 176 80 9 3 29 Move 9399 | 122 1143 594 410 2383 990 900 2019 93 201 544 Hop . | . . . . . . . . . . . Pick Up 112 | 7 22 7 4 38 7 7 4 . 7 9 Fast Attach 49 | 7 3 . 1 6 2 9 1 . 6 14 Attach 48 | . 3 3 . 18 3 1 3 . 3 14 Detach 5 | . 1 1 . 2 . . . . . 1 Swap 139 | . 15 10 5 49 12 23 4 . 10 11 Drop 106 | . 17 8 5 40 5 14 3 . 10 4 Fire 536 | 22 99 25 19 169 27 71 27 . 14 63 Melee 131 | . 3 8 1 30 31 6 5 . . 47 Ram 1 | . . . . . . 1 . . . . Kick . | . . . . . . . . . . . Crush . | . . . . . . . . . . . Escape Stasis . | . . . . . . . . . . . Rewire 71 | . . . . . . 13 54 . . 4 Trap . | . . . . . . . . . . . Miscellaneous . | . . . . . . . . . . . Route ------- -11/Scrapyard -10/Materials (discovered 4 exits: *Mat x3 / [*Min]) -10/Mines (discovered 3 exits: *Mat x2 / *Sub) -10/Subcaves -8/Materials (discovered 2 exits: *Fac x2) -7/Factory (discovered 2 exits: *Sto x2) -7/Storage -7/Recycling -5/Factory -5/DSF -4/Factory (discovered 5 exits: Upp x2 / Ext x2 / Arm) History --------- Turn | Location | Event 29 | -11/Scrapyard | Discovered new exit (range 15) 194 | -11/Scrapyard | Entered Materials 320 | -10/Materials | Build established: Mutant 325 | -10/Materials | Discovered new exit (range 16) 356 | -10/Materials | Discovered new exit (range 13) 1489 | -10/Materials | Discovered new exit (range 10) 1709 | -10/Materials | Discovered new exit (range 15) 2055 | -10/Materials | Repaired Lgt. Treads 2082 | -10/Materials | Repaired Lgt. Treads 2203 | -10/Materials | Entered Mines 2231 | -10/Mines | Learned Materials garrison access intel 2299 | -10/Mines | Core integrity fell below 50% 2470 | -10/Mines | Identified exit to Materials 2500 | -10/Mines | Found a Scrap Suit stashed away for nefarious purposes 2506 | -10/Mines | Found Scrap Suit 2525 | -10/Mines | Discovered new exit (range 4) 2582 | -10/Mines | Discovered exit to Materials (range 14) 3052 | -10/Mines | Joined a pair of Derelicts in attacking an 0b10 outpost 3304 | -10/Mines | Entered Subcaves 3304 | -10/Subcaves | Accompanied by 2 allies 3309 | -10/Subcaves | Led the pair of lost Derelicts to an unsafe place 3342 | -10/Subcaves | Shifting Twisted Machinery released Sub. Monowheel 3354 | -10/Subcaves | Shifting Twisted Machinery released Battle Cannon 3426 | -10/Subcaves | Build established: Scavenger-Mutant 3439 | -10/Subcaves | Visited 4L-MR0's lab 3713 | -10/Subcaves | Core integrity fell below 20% 3837 | -10/Subcaves | Build established: Mutant 3880 | -10/Subcaves | Shifting Twisted Machinery released Mak. Light Armor Plating 3973 | -10/Subcaves | Shifting Twisted Machinery released Battle Cannon 4011 | -10/Subcaves | Discovered new exit (range 10) 4046 | -10/Subcaves | Entered Materials 4046 | -8/Materials | Evolved 4 slots: Propulsion x2, Utility x2 4047 | -8/Materials | Loaded intel: 1 garrison access location 4259 | -8/Materials | Discovered new exit (range 15) 4279 | -8/Materials | Build established: Scavenger-Mutant 4844 | -8/Materials | Garrison activated, responded to threat 4989 | -8/Materials | Garrison activated, responded to threat 5009 | -8/Materials | Lost 3 parts (1p1u1w) 5631 | -8/Materials | Lost 6 parts (5n1w) 5918 | -8/Materials | Repaired Adv. Heat Sink 6052 | -8/Materials | Build established: Mutant 6669 | -8/Materials | Discovered new exit (range 12) 6687 | -8/Materials | Identified exit to Factory 6931 | -8/Materials | Core integrity fell below 50% 7969 | -8/Materials | Entered Factory 7969 | -7/Factory | Evolved 2 slots: Utility x2 7980 | -7/Factory | Discovered new exit (range 8) 7983 | -7/Factory | Identified exit to Storage 8173 | -7/Factory | Identified exit to DSF 8269 | -7/Factory | Build established: Hacker-Mutant 8417 | -7/Factory | Discovered exit to Storage (range 7) 8530 | -7/Factory | Found Powered Armor 8695 | -7/Factory | Entered Storage 8734 | -7/Storage | Found Prototype Protection 8734 | -7/Storage | Identified Lgt. Regenerative Plating 8841 | -7/Storage | Met 01-MTF 8983 | -7/Storage | Assisted by bots powering up and referring to "LRC-V3" 9018 | -7/Storage | P-60 Hacker assimilated allied Trooper 4d 9026 | -7/Storage | Core integrity fell below 50% 9031 | -7/Storage | P-60 Hacker assimilated allied Soldier 4a 9141 | -7/Storage | Repaired Prc. Assault Rifle 9418 | -7/Storage | Build established: Mutant 9522 | -7/Storage | Repaired Broken Imp. Airjet 9537 | -7/Storage | Discovered new exit (range 5) 9538 | -7/Storage | Identified exit to Recycling 9551 | -7/Storage | Entered Recycling 9846 | -7/Recycling | Discovered new exit (range 16) 9853 | -7/Recycling | Identified exit to Factory 10350 | -7/Recycling | Build established: Hacker-Mutant 10556 | -7/Recycling | Entered Factory 10556 | -5/Factory | Accompanied by 4 allies 10556 | -5/Factory | Evolved 4 slots: Power x1, Propulsion x2, Utility x1 10591 | -5/Factory | Identified exit to DSF 10601 | -5/Factory | Entered DSF 10601 | -5/DSF | Accompanied by 4 allies 10602 | -5/DSF | Joined Warlord attack on 0b10 via DSF 10630 | -5/DSF | Additional patrols routed to DSF 10690 | -5/DSF | Lost 5 allies 10701 | -5/DSF | Discovered new exit (range 14) 10726 | -5/DSF | Identified exit to Factory 10956 | -5/DSF | Sterilization system engaged 10965 | -5/DSF | Lost 3 allies 10976 | -5/DSF | Ambient heat levels rising (+10) 10991 | -5/DSF | Ambient heat levels rising (+10) 11000 | -5/DSF | Entered Factory 11000 | -4/Factory | Accompanied by 1 ally 11000 | -4/Factory | Evolved 2 slots: Utility x2 11128 | -4/Factory | Spotted B-86 Titan 11212 | -4/Factory | Garrison activated, responded to threat 11292 | -4/Factory | Build established: Scavenger-Mutant 11299 | -4/Factory | Identified exit to Upper Caves 11299 | -4/Factory | Identified exit to Extension 11299 | -4/Factory | Identified exit to Armory 11879 | -4/Factory | System corruption reached 10% 11974 | -4/Factory | Lost 14 parts (2p2n7u3w) 12186 | -4/Factory | Build established: Mutant 12272 | -4/Factory | Core integrity fell below 50% 12297 | -4/Factory | Core integrity fell below 20% 12318 | -4/Factory | Destroyed by G-67 Veteran with Plasma Rifle Last Messages --------------- 12297_ Destroyed Autogun. 12297_ Destroyed VTOL Module. 12297_ S-27 Virus system corrupted by crushing effect. 12297_ S-27 Virus knocked back. 12298_ S-27 Virus system terminally corrupted. 12298_ R-10 Processor collects VTOL Module. 12306_ S-27 Virus IFF system glitched. 12307_ R-10 Processor collects Corrupted Hpw. Shotgun. 12308_ S-27 Virus IFF system glitched. 12308_ Prc. Assault Rifle destroyed. 12309_ S-27 Virus suffers critical hit (Smash). 12309_ Destroyed Lgt. Nuclear Core. 12309_ S-27 Virus system corrupted by crushing effect. 12309_ VTOL Module fried. 12309_ S-27 Virus destroyed. 12312_ System corrupted: Energy discharge (-33). 12312_ Critical hit (Burn: +37). 12315_ G-67 Veteran suffers critical hit (Smash). 12315_ Destroyed Flexi-carbon Leg. 12315_ G-67 Veteran system corrupted by crushing effect. Map ----- +----------------------------------------------------+ | ???????????#! """ """ +?????????? | | ???????????# """ """ #?????????? | | ?????????### #?????????? | | ?????????#"" """ ###???????? | | ?????????#"F """ #???????? | | ?????????#"" """ #???????? | | ?????????#"" "T" #???????? | | ???######### #???????? | | ? #???????? | | ???????##### ######+####??????? | | ???????????# #??# #??????? | | ???????????# #??# "" #??????? | | ???????????# #??# "T #??????? | | ???????????# #??# "" #??????? | | ???????????#######??# #??????? | | ????????????????????# #??????? | | ????????????????????######+#??????? | | ?????????????????????????# #??????? | | ?????????????????????????# #??????? | | ?????????????????????????# #??????? | | ????????????????????????## #??????? | | ????????????????????????## #??????? | | ????????????????????????## ######## | | ?????????????????????????# ## # | | ????????????????????????## ## # | | ###################@ # """ # | | + %%% =!= [! %%g % + """ # | | ###################p # """ # | | ????????##################%## # | | ????????## %= =#[ ## =# | | ????????## %% #%= ##+##### | | ????????## %/ %! #???? | | ????????## % #% % #???? | | ????????## [/%#% %%= "" " #???? | | /################# %= F " #???? | | ### #???? | | ### #???? | | ! = #???? | | !!= ##### ## T# #???? | | !== ##??# ##### #???? | | """""" #???# #???# #???? | | ??"""" #???# #???# #???? | | ???""" #####+#####+## #???? | | ???""" # # #???? | | ???""" % # """""" # #???? | | ?""""" % # """""" # #???? | | """""" # """""" # #???? | | """""" # """""" # #???? | | """"" # # #???? | | % + + #???? | +----------------------------------------------------+ Best States ------------- Heat Dissipation 98 Energy Generation 35 Energy Capacity 540 Matter Stores 300 Matter Capacity 300 Sight Range 16 Robot Scan Range 16 Terrain Scan Density 10 Armor Coverage 400 Evasion (%) 57 Recoil Reduction 6 Particle Charging 25 Kinecelleration 30 Offensive Hacking 10 Defensive Hacking 10 Item Schematics ----------------- Aerolev Unit | -8/Materials | Scanalyzed Robot Schematics ------------------ None Fabricated ------------ Nothing Repaired ---------- Lgt. Treads | 12% | -10/Materials Lgt. Treads | 32% | -10/Materials Adv. Heat Sink | 16% | -8/Materials Prc. Assault Rifle | 11% | -7/Storage Imp. Airjet | 51% | -7/Storage | Broken Alien Tech Used ----------------- None Achievements -------------- None Challenges ------------ None Game ------ Seed VortexTowerSystem Manual? 0 Play Time 02:51:08 Cumulative 85.8 hours Start 2025.05.11 @ 09:39:48 End 2025.05.11 @ 20:32:15 Sessions 11 Manual Loads 0 Difficulty Rogue Special Mode None Game No. 54 Rogue 50 Adventurer 4 Explorer 0 Win Type - Total 2 Types 1/0/0/1/0/0/0/0/0/0 Lore% 33 Gallery% 41 Achievement% 38 Wizard Run 0 Options --------- Layout 0 ASCII 0 Keyboard 1 Movement Vi Keybinds 0 Fullscreen 1 Font 24/Crisp Map View 76x50 Zoom Use 0% Tactical HUD 1 Map Filters NONE Filters NONE Steam 1 RUN: 2ac6e679-3439-4855-89ce-38527622db87